bitfinex-derivatives/quotes_SOLF0:USTF0_20240815
["timestamp","ask_amount","ask_price","bid_price","bid_amount"]
[1723705053292,14.43818594,141.86,141.84,0.05382211]
[1723705056089,3.5245,141.85,141.84,0.05382211]
[1723705056387,14.3845,141.85,141.84,0.05382211]
[1723705056584,15.98,141.85,141.78,1.2465]
[1723705056784,10.86,141.81,141.74,1.3398]
[1723705057592,10.86,141.81,141.78,3.5263]
[1723705057782,0.04787972,141.79,141.78,3.5263]
[1723705063192,0.04787972,141.79,141.77,3.5265]
[1723705063390,0.04787972,141.79,141.76,0.05317367]
[1723705063599,3.5264,141.78,141.76,0.05317367]
[1723705063801,10.90787972,141.79,141.76,0.05317367]
[1723705064197,14.43407972,141.79,141.76,0.05317367]
[1723705065892,10.90787972,141.79,141.76,0.05317367]
[1723705066101,10.86,141.77,141.76,0.05317367]
[1723705066301,14.3865,141.77,141.76,0.05317367]
[1723705066803,10.86,141.77,141.69,6.24367617]
[1723705066996,10.86,141.75,141.71,3.5278]
[1723705067899,27.12,141.77,141.71,3.5278]
[1723705068099,0.04893572,141.74,141.72,0.05185275]
[1723705070292,0.04893572,141.74,141.73,3.5275]
[1723705070500,0.04893572,141.74,141.72,0.05185275]
[1723705071197,0.04893572,141.74,141.72,3.57945275]
[1723705071603,0.04893572,141.74,141.72,0.05185275]
[1723705073704,0.04893572,141.74,141.72,3.57945275]
[1723705075907,0.04893572,141.74,141.72,0.05185275]
[1723705078611,0.04893572,141.74,141.73,3.5275]
[1723705078815,0.04893572,141.74,141.72,0.05185275]
[1723705079210,0.04893572,141.74,141.73,3.5275]
[1723705082309,0.04893572,141.74,141.72,3.57955275]
[1723705083106,0.04893572,141.74,141.73,3.5275]
[1723705088829,5.1,141.79,141.73,3.5275]
[1723705088830,5.1,141.81,141.73,27.12]
[1723705089124,5.1,141.81,141.74,1.2399]
[1723705089318,3.5259,141.8,141.76,3.5267]
[1723705089720,5.1,141.81,141.75,32.00055534]
[1723705089920,0.0470158,141.79,141.77,10.87860362]
[1723705090123,0.0470158,141.79,141.77,0.04860362]
[1723705090521,0.0470158,141.79,141.78,3.5261]
[1723705094927,0.0470158,141.79,141.77,0.04860362]
[1723705095230,3.5731158,141.79,141.77,0.04860362]
[1723705096335,0.0470158,141.79,141.77,3.57510362]
[1723705096627,0.0470158,141.79,141.77,0.04860362]
[1723705097133,3.5731158,141.79,141.77,0.04860362]
[1723705097429,14.4031158,141.79,141.77,0.04860362]
[1723705098633,10.8770158,141.79,141.77,0.04860362]
[1723705099533,0.0470158,141.79,141.77,3.57500362]
[1723705100826,0.0470158,141.79,141.78,3.5263]
[1723705102437,5.1,141.88,141.78,10.83]
[1723705102735,5.1,141.88,141.8,10.83]
[1723705102935,14.3542,141.87,141.8,10.83]
[1723705103139,14.3542,141.87,141.8,12.1736]
[1723705103339,14.3542,141.87,141.83,3.5249]
[1723705103635,14.3542,141.87,141.8,12.1736]
[1723705103636,0.05042881,141.85,141.82,0.05137081]
[1723705104232,0.05042881,141.85,141.83,3.5249]
[1723705104435,0.05042881,141.85,141.82,0.05137081]
[1723705104933,3.57512881,141.85,141.82,0.05137081]
[1723705105729,0.05042881,141.85,141.82,3.57647081]
[1723705106734,3.57502881,141.85,141.82,3.57647081]
[1723705107044,0.05042881,141.85,141.82,0.05137081]
[1723705108036,3.57512881,141.85,141.82,0.05137081]
[1723705109044,3.57512881,141.85,141.82,3.57657081]
[1723705110740,0.05042881,141.85,141.83,3.525]
[1723705111944,0.05042881,141.85,141.84,3.5248]
[1723705113347,0.05042881,141.85,141.83,3.5249]
[1723705114347,0.05042881,141.85,141.84,3.5248]
[1723705114642,0.05042881,141.85,141.82,0.05137081]
[1723705115154,0.05042881,141.85,141.83,3.5249]
[1723705116347,0.05042881,141.85,141.84,3.5248]
[1723705123947,0.05042881,141.85,141.84,7.02677666]
[1723705139058,0.05042881,141.85,141.84,3.5248]
[1723705139463,0.05042881,141.85,141.82,0.05137081]
[1723705141664,0.05042881,141.85,141.83,3.525]
[1723705142865,0.05042881,141.85,141.82,0.05137081]
[1723705143061,0.05042881,141.85,141.82,10.88137081]
[1723705143263,0.05042881,141.85,141.84,10.83]
[1723705143557,0.05042881,141.85,141.84,17.91021455]
[1723705143764,0.05042881,141.85,141.84,3.5248]
[1723705145364,0.05042881,141.85,141.84,14.3548]
[1723705145765,0.05042881,141.85,141.84,3.5248]
[1723705150064,0.05042881,141.85,141.84,14.3548]
[1723705152679,3.5232,141.91,141.87,3.5239]
[1723705153971,0.04533586,141.9,141.88,0.05143518]
[1723705155668,0.04533586,141.9,141.88,3.57513518]
[1723705155972,0.04533586,141.9,141.88,0.05143518]
[1723705156378,0.04533586,141.9,141.89,3.5235]
[1723705156571,25.3791784,141.97,141.89,10.83]
[1723705156774,10.83,142.0,141.94,3.5221]
[1723705157271,10.83,142.0,141.93,5.08]
[1723705157474,10.83,141.99,141.94,3.5222]
[1723705157873,10.83,141.99,141.95,0.05185464]
[1723705158373,3.5216,141.97,141.95,0.05185464]
[1723705158769,3.5218,141.96,141.95,0.05185464]
[1723705165278,1.3174,142.01,141.95,0.05185464]
[1723705165479,1.3174,142.01,141.96,10.83]
[1723705165679,3.5215,141.98,141.95,0.05185464]
[1723705166377,3.5215,141.98,141.95,3.57385464]
[1723705166872,3.5211,141.99,141.95,3.57375464]
[1723705167481,3.5211,141.99,141.95,0.05185464]
[1723705168587,3.5211,141.99,141.6,97.95239523]
[1723705168588,10.83,141.96,141.88,7.6699]
[1723705168780,10.83,141.96,141.88,13.4199]
[1723705169073,5.08,141.97,141.88,15.6457]
[1723705169281,10.83,141.95,141.88,14.3537]
[1723705169672,3.5227,141.93,141.88,14.3537]
[1723705169875,3.57455464,141.93,141.9,0.04654459]
[1723705173081,3.523,141.92,141.9,0.04654459]
[1723705176083,0.05185464,141.93,141.9,0.04654459]
[1723705176780,3.5229,141.92,141.9,0.04654459]
[1723705178883,0.05185464,141.93,141.9,0.04654459]
[1723705178884,3.57445464,141.93,141.9,0.04654459]
[1723705179284,3.57445464,141.93,141.9,3.56974459]
[1723705179285,0.05185464,141.93,141.9,3.56974459]
[1723705179885,0.05185464,141.93,141.9,0.04654459]
[1723705180285,3.57435464,141.93,141.9,0.04654459]
[1723705180586,0.05185464,141.93,141.9,0.04654459]
[1723705180978,0.05185464,141.93,141.9,3.56984459]
[1723705181791,3.57445464,141.93,141.9,3.56984459]
[1723705182587,0.05185464,141.93,141.9,3.56984459]
[1723705184590,0.05185464,141.93,141.9,0.04654459]
[1723705185587,0.05185464,141.93,141.9,3.56984459]
[1723705188281,0.05185464,141.93,141.9,0.04654459]
[1723705189094,0.05185464,141.93,141.9,3.56984459]
[1723705189893,0.05185464,141.93,141.9,10.87654459]
[1723705190492,0.05185464,141.93,141.91,3.5229]
[1723705191688,0.05185464,141.93,141.92,3.5228]
[1723705191891,0.05185464,141.93,141.9,10.87654459]
[1723705192296,0.05185464,141.93,141.91,3.5229]
[1723705198291,0.05185464,141.93,141.92,3.5228]
[1723705200300,0.05185464,141.93,141.9,0.04654459]
[1723705200796,0.05185464,141.93,141.9,3.56964459]
[1723705201792,0.05185464,141.93,141.9,10.87654459]
[1723705202294,0.05185464,141.93,141.92,3.5228]
[1723705202699,0.05185464,141.93,141.9,0.04654459]
[1723705202904,0.05185464,141.93,141.9,3.56964459]
[1723705203797,0.05185464,141.93,141.9,0.04654459]
[1723705204001,10.88185464,141.93,141.9,0.04654459]
[1723705204500,0.05185464,141.93,141.9,0.04654459]
[1723705204693,8.583,141.92,141.9,0.04654459]
[1723705205999,3.523,141.91,141.9,5.10654459]
[1723705206401,3.523,141.91,141.9,0.04654459]
[1723705206898,3.5229,141.92,141.9,0.04654459]
[1723705207097,0.05185464,141.93,141.9,0.04654459]
[1723705207507,3.5229,141.92,141.9,0.04654459]
[1723705207698,0.05185464,141.93,141.9,0.04654459]
[1723705208000,0.05185464,141.93,141.91,5.06]
[1723705208392,3.523,141.92,141.91,5.06]
[1723705209002,3.523,141.92,141.9,0.04654459]
[1723705209198,3.523,141.92,141.91,5.06]
[1723705210109,3.523,141.92,141.9,0.04654459]
[1723705210292,3.523,141.92,141.91,5.06]
[1723705211506,3.57445464,141.93,141.91,5.06]
[1723705211805,0.05185464,141.93,141.91,5.06]
[1723705211995,0.05185464,141.93,141.9,0.04654459]
[1723705212195,0.05185464,141.93,141.9,5.10654459]
[1723705212601,3.523,141.92,141.9,5.10654459]
[1723705213102,0.05185464,141.93,141.9,5.10654459]
[1723705213509,3.57455464,141.93,141.9,5.10654459]
[1723705213700,3.57455464,141.93,141.91,5.06]
[1723705213701,0.05185464,141.93,141.91,5.06]
[1723705213904,3.5229,141.92,141.91,5.06]
[1723705214407,3.5229,141.92,141.9,0.04654459]
[1723705214602,0.05185464,141.93,141.91,5.06]
[1723705215304,3.57455464,141.93,141.91,5.06]
[1723705215499,0.05185464,141.93,141.91,5.06]
[1723705217209,0.05185464,141.93,141.9,14.39974459]
[1723705217401,0.05185464,141.93,141.92,5.06]
[1723705218606,3.57435464,141.93,141.91,5.06]
[1723705219110,3.523,141.91,141.9,0.04654459]
[1723705219498,3.57445464,141.93,141.9,0.04654459]
[1723705219700,0.05185464,141.93,141.9,0.04654459]
[1723705220211,0.05185464,141.93,141.9,3.56964459]
[1723705220402,0.05185464,141.93,141.9,14.39964459]
[1723705220809,0.05185464,141.93,141.9,10.87654459]
[1723705220999,0.05185464,141.93,141.91,5.06]
[1723705221512,0.05185464,141.93,141.91,19.4129]
[1723705223009,0.05185464,141.93,141.92,14.3528]
[1723705223714,0.05185464,141.93,141.92,19.4128]
[1723705224615,0.05185464,141.93,141.92,8.5828]
[1723705225004,0.05185464,141.93,141.92,3.5228]
[1723705225504,0.05185464,141.93,141.91,5.06]
[1723705225711,0.05185464,141.93,141.9,0.04654459]
[1723705225712,0.05185464,141.93,141.9,5.10654459]
[1723705226012,0.05185464,141.93,141.9,8.62964459]
[1723705226309,0.05185464,141.93,141.9,5.10654459]
[1723705226513,0.05185464,141.93,141.9,0.04654459]
[1723705226814,3.523,141.92,141.9,0.04654459]
[1723705229214,3.523,141.91,141.9,0.04654459]
[1723705230717,0.05185464,141.93,141.9,0.04654459]
[1723705231604,3.5229,141.92,141.9,0.04654459]
[1723705232417,3.57455464,141.93,141.9,0.04654459]
[1723705233211,3.5229,141.92,141.9,0.04654459]
[1723705233517,0.05185464,141.93,141.9,0.04654459]
[1723705233704,3.5229,141.92,141.9,0.04654459]
[1723705237515,3.523,141.91,141.9,0.04654459]
[1723705238216,0.05185464,141.93,141.9,0.04654459]
[1723705238417,5.11185464,141.93,141.9,0.04654459]
[1723705240820,3.523,141.91,141.9,0.04654459]
[1723705241917,3.5239,141.88,141.84,2.5208]
[1723705242120,3.5239,141.88,141.84,12.1169]
[1723705242318,10.83,141.92,141.85,10.83]
[1723705242623,5.04,141.91,141.85,14.3543]
[1723705242820,3.5237,141.89,141.85,14.3543]
[1723705243325,8.5637,141.89,141.85,14.3543]
[1723705243825,3.57604207,141.88,141.86,0.04449856]
[1723705244528,14.354,141.87,141.86,0.04449856]
[1723705244928,17.8174156,141.87,141.86,0.04449856]
[1723705245226,3.5246,141.85,141.81,14.3554]
[1723705245430,14.2934156,141.87,141.8,1.2861]
[1723705245730,0.05224207,141.88,141.79,10.83]
[1723705245731,15.87,141.86,141.79,10.83]
[1723705245924,3.5252,141.83,141.79,14.3559]
[1723705246427,15.87,141.86,141.79,10.83]
[1723705247127,0.05009789,141.82,141.8,3.57877105]
[1723705247327,0.05009789,141.82,141.8,0.05307105]
[1723705247628,8.5655,141.81,141.8,0.05307105]
[1723705248323,5.04,141.81,141.8,0.05307105]
[1723705248528,0.05009789,141.82,141.8,0.05307105]
[1723705248724,5.04,141.81,141.8,0.05307105]
[1723705249517,8.5655,141.81,141.8,0.05307105]
[1723705249828,8.5655,141.81,141.72,43.32]
[1723705249829,5.04,141.81,141.72,10.83]
[1723705250130,3.5265,141.77,141.72,10.83]
[1723705250623,3.5265,141.77,141.68,3.53501068]
[1723705250624,8.5668,141.76,141.68,3.53501068]
[1723705250822,8.5668,141.76,141.71,10.83]
[1723705251024,8.5668,141.76,141.72,3.5276]
[1723705251423,0.0486288,141.73,141.72,3.5276]
[1723705256532,0.0486288,141.73,141.71,0.04728137]
[1723705256533,3.5278,141.72,141.71,0.04728137]
[1723705257236,8.5878,141.72,141.71,0.04728137]
[1723705258537,3.5278,141.72,141.71,0.04728137]
[1723705258843,8.5878,141.72,141.71,0.04728137]
[1723705259234,15.89,141.72,141.51,15.6585]
[1723705259431,10.83,141.7,141.63,10.83]
[1723705259637,5.06,141.69,141.66,14.3591]
[1723705259841,5.06,141.71,141.68,10.83]
[1723705260436,5.06,141.71,141.62,1.3262]
[1723705260644,5.1108979,141.71,141.68,0.04670877]
[1723705261036,5.06,141.71,141.67,14.3588]
[1723705261342,5.10999069,141.71,141.68,0.04698115]
[1723705261542,3.5285,141.69,141.68,0.04698115]
[1723705263932,3.5283,141.7,141.68,0.04698115]
[1723705264137,8.5883,141.7,141.68,0.04698115]
[1723705264837,3.5283,141.7,141.68,0.04698115]
[1723705265246,3.5285,141.69,141.68,0.04698115]
[1723705265639,6.99493295,141.69,141.68,0.04698115]
[1723705266547,3.5295,141.65,141.62,1.3262]
[1723705266742,3.5295,141.65,141.61,4.7804]
[1723705267049,3.5294,141.66,141.61,4.7804]
[1723705267239,3.5294,141.66,141.58,1.3018]
[1723705267240,32.16,141.67,141.58,1.3018]
[1723705267543,3.5302,141.63,141.58,1.3018]
[1723705267843,5.06,141.62,141.56,28.3578]
[1723705268248,3.5307,141.61,141.56,28.3578]
[1723705268544,0.05165884,141.64,141.56,28.3578]
[1723705268744,5.06,141.61,141.56,28.3578]
[1723705268945,5.06,141.61,141.57,3.5313]
[1723705269145,5.06,141.61,141.58,0.05245912]
[1723705269544,3.5301,141.63,141.58,3.58365912]
[1723705269749,0.05152534,141.6,141.58,3.58365912]
[1723705270142,0.05152534,141.6,141.58,0.05245912]
[1723705274341,27.15152534,141.6,141.58,0.05245912]
[1723705274743,8.53390559,141.59,141.58,0.05245912]
[1723705274940,12.06490559,141.59,141.58,0.05245912]
[1723705276252,5.06,141.59,141.58,0.05245912]
[1723705276450,5.11152534,141.6,141.58,0.05245912]
[1723705276954,5.06,141.66,141.58,0.05245912]
[1723705277157,5.06,141.66,141.6,27.1]
[1723705277348,8.5894,141.66,141.61,3.5303]
[1723705277848,5.06,141.66,141.6,27.1]
[1723705278349,0.04917282,141.64,141.62,27.14685635]
[1723705278745,5.06,141.7,141.62,27.1]
[1723705278950,0.04974566,141.64,141.63,3.53]
[1723705279156,3.5285,141.69,141.62,27.14929909]
[1723705279342,3.5285,141.69,141.62,27.1]
[1723705279854,5.06,141.73,141.66,27.1]
[1723705280161,5.06,141.73,141.67,2.587]
[1723705280351,3.5279,141.72,141.67,6.1159]
[1723705280556,27.1,141.76,141.67,2.587]
[1723705280750,0.04995299,141.71,141.68,0.05290908]
[1723705281046,0.04995299,141.71,141.68,27.15290908]
[1723705281249,0.04995299,141.71,141.69,3.5283]
[1723705281744,0.04995299,141.71,141.68,27.15290908]
[1723705281945,5.04,141.77,141.7,27.1]
[1723705282148,30.56113111,141.8,141.7,27.1]
[1723705282348,5.04,141.81,141.72,27.1]
[1723705282553,3.5262,141.79,141.74,3.5272]
[1723705282852,27.1,141.83,141.74,27.1]
[1723705283052,27.1,141.83,141.75,1.3595]
[1723705283446,3.5259,141.8,141.75,4.8863]
[1723705283651,0.04927752,141.78,141.75,4.93801416]
[1723705283846,0.04927752,141.78,141.75,1.41121416]
[1723705284045,3.63118806,141.78,141.75,0.05171416]
[1723705284659,3.5265,141.77,141.75,0.05171416]
[1723705284955,27.1,141.77,141.75,0.05171416]
[1723705285746,3.5268,141.76,141.75,0.05171416]
[1723705287154,3.5266,141.77,141.75,0.05171416]
[1723705288056,5.08927752,141.78,141.75,0.05171416]
[1723705288057,0.04927752,141.78,141.75,0.05171416]
[1723705288267,0.04927752,141.78,141.75,27.15171416]
[1723705288559,3.5254,141.82,141.76,2.5574]
[1723705289152,3.5254,141.82,141.77,3.5265]
[1723705289760,3.5251,141.83,141.78,3.5261]
[1723705289961,0.04981245,141.81,141.78,0.04656673]
[1723705291550,0.04981245,141.81,141.78,3.57276673]
[1723705292352,0.04981245,141.81,141.78,0.04656673]
[1723705294265,27.1,141.79,141.78,0.04656673]
[1723705294470,32.14,141.79,141.78,0.04656673]
[1723705294966,35.666,141.79,141.78,0.04656673]
[1723705295575,3.5271,141.75,141.7,1.281]
[1723705296261,27.1,141.77,141.7,1.281]
[1723705296467,27.1,141.74,141.65,32.14]
[1723705296768,32.14,141.74,141.67,3.4611856]
[1723705296968,8.5674,141.74,141.72,0.05158464]
[1723705297567,3.5274,141.74,141.72,0.05158464]
[1723705298866,0.04639524,141.75,141.72,0.05158464]
[1723705299374,0.04639524,141.75,141.73,3.5274]
[1723705299573,0.04639524,141.75,141.73,4.8912]
[1723705300375,5.04,141.8,141.74,3.5271]
[1723705300771,3.5262,141.79,141.74,3.5271]
[1723705301274,5.04,141.8,141.75,3.527]
[1723705301475,5.04,141.8,141.73,1.3638]
[1723705301675,0.04706419,141.78,141.75,0.05221762]
[1723705301973,0.04706419,141.78,141.75,3.57911762]
[1723705302163,0.04706419,141.78,141.75,0.05221762]
[1723705302677,0.04706419,141.78,141.75,3.57921762]
[1723705303072,0.04706419,141.78,141.75,0.05221762]
[1723705303267,0.04706419,141.78,141.75,1.30571762]
[1723705304475,3.5268,141.76,141.75,0.05221762]
[1723705304774,0.04706419,141.78,141.75,0.05221762]
[1723705305280,3.5267,141.77,141.75,0.05221762]
[1723705305776,3.57336419,141.78,141.75,0.05221762]
[1723705305980,0.04706419,141.78,141.75,0.05221762]
[1723705307274,3.56421173,141.78,141.75,0.05221762]
[1723705307481,5.04,141.77,141.75,0.05221762]
[1723705307679,38.94,141.77,141.75,0.05221762]
[1723705307980,38.94,141.77,141.67,4.85954989]
[1723705307981,38.94,141.77,141.67,2.576]
[1723705308173,40.2944,141.77,141.67,2.576]
[1723705308374,33.9,141.74,141.67,2.576]
[1723705309182,0.04596505,141.72,141.69,0.04461583]
[1723705309378,5.08596505,141.72,141.69,0.04461583]
[1723705310280,8.61376505,141.72,141.69,0.04461583]
[1723705310470,5.08596505,141.72,141.69,0.04461583]
[1723705310674,3.5282,141.71,141.69,0.04461583]
[1723705310884,5.08596505,141.72,141.69,0.04461583]
[1723705311483,0.04596505,141.72,141.69,0.04461583]
[1723705312279,3.57376505,141.72,141.69,0.04461583]
[1723705313387,3.528,141.71,141.69,0.04461583]
[1723705314187,3.5283,141.7,141.69,0.04461583]
[1723705318377,3.5281,141.71,141.69,0.04461583]
[1723705319181,0.04596505,141.72,141.69,0.04461583]
[1723705319892,3.5282,141.71,141.69,0.04461583]
[1723705320187,0.04596505,141.72,141.69,0.04461583]
[1723705320777,3.5283,141.7,141.69,0.04461583]
[1723705323689,0.04596505,141.72,141.69,0.04461583]
[1723705324092,0.04596505,141.72,141.69,3.57301583]
[1723705325091,0.04596505,141.72,141.69,0.04461583]
[1723705325896,0.04596505,141.72,141.69,3.57311583]
[1723705330401,0.04596505,141.72,141.69,0.04461583]
[1723705330697,27.16596505,141.72,141.69,0.04461583]
[1723705330889,3.528,141.71,141.69,0.04461583]
[1723705331288,0.04596505,141.72,141.69,0.04461583]
[1723705331691,3.57376505,141.72,141.69,0.04461583]
[1723705333096,0.04596505,141.72,141.69,0.04461583]
[1723705333802,3.5282,141.71,141.69,0.04461583]
[1723705334500,3.57376505,141.72,141.69,0.04461583]
[1723705334694,0.04596505,141.72,141.69,0.04461583]
[1723705335699,3.57376505,141.72,141.69,0.04461583]
[1723705336002,0.04596505,141.72,141.69,0.04461583]
[1723705337699,3.5282,141.71,141.69,0.04461583]
[1723705338497,3.5283,141.7,141.69,0.04461583]
[1723705341605,38.9,141.7,141.59,33.86]
[1723705341810,3.50254437,141.69,141.59,37.38231082]
[1723705342113,3.5291,141.67,141.61,3.5305]
[1723705342300,3.54635813,141.68,141.59,33.86]
[1723705342505,38.9,141.7,141.59,33.86]
[1723705342703,3.5299,141.64,141.58,8.5711]
[1723705343105,3.5299,141.64,141.62,0.04705403]
[1723705343303,3.58376331,141.65,141.62,0.04705403]
[1723705343506,0.05406331,141.65,141.62,0.04705403]
[1723705344009,3.5299,141.64,141.62,0.04705403]
[1723705344410,5.09406331,141.65,141.62,0.04705403]
[1723705344600,3.53,141.63,141.62,0.04705403]
[1723705345710,33.86,141.63,141.54,3.5322]
[1723705346007,33.86,141.63,141.52,38.9]
[1723705346215,3.5306,141.61,141.52,38.9]
[1723705346408,3.5306,141.61,141.55,3.532]
[1723705346605,33.86,141.63,141.55,3.532]
[1723705347017,0.05197108,141.59,141.57,0.04700167]
[1723705349815,3.5312,141.58,141.57,0.04700167]
[1723705350617,0.05197108,141.59,141.57,0.04700167]
[1723705350618,3.58307108,141.59,141.57,0.04700167]
[1723705351017,0.05197108,141.59,141.57,0.04700167]
[1723705354220,3.58297108,141.59,141.57,0.04700167]
[1723705354417,0.05197108,141.59,141.57,0.04700167]
[1723705354917,3.5312,141.58,141.57,0.04700167]
[1723705359223,3.5325,141.53,141.48,33.86]
[1723705359525,5.04,141.55,141.47,6.13284522]
[1723705359724,5.04,141.54,141.48,3.5336]
[1723705360024,5.04,141.55,141.48,27.15]
[1723705360328,3.5327,141.53,141.47,2.5544]
[1723705360724,3.5327,141.53,141.47,29.7044]
[1723705360921,3.58281829,141.53,141.5,0.04597515]
[1723705361122,0.05011829,141.53,141.5,0.04597515]
[1723705368331,0.05011829,141.53,141.51,3.533]
[1723705368531,0.05011829,141.53,141.5,0.04597515]
[1723705369530,0.05011829,141.53,141.5,3.57907515]
[1723705369732,0.05011829,141.53,141.5,0.04597515]
[1723705370350,0.05011829,141.53,141.51,3.5329]
[1723705370645,0.05011829,141.53,141.5,0.04597515]
[1723705370950,3.58261829,141.53,141.5,0.04597515]
[1723705371944,0.05011829,141.53,141.5,0.04597515]
[1723705372239,0.05011829,141.53,141.51,3.5328]
[1723705373239,27.15,141.61,141.5,0.04597515]
[1723705373436,5.04,141.61,141.52,27.15]
[1723705373735,5.04,141.61,141.53,2.6758]
[1723705373937,3.5312,141.59,141.54,3.5322]
[1723705374146,32.19,141.61,141.53,2.6758]
[1723705374649,3.58463591,141.58,141.55,0.04820189]
[1723705375139,3.5315,141.57,141.55,0.04820189]
[1723705375344,0.05333591,141.58,141.55,0.04820189]
[1723705375542,3.5317,141.56,141.55,0.04820189]
[1723705377248,0.05333591,141.58,141.55,0.04820189]
[1723705378548,3.5317,141.56,141.55,0.04820189]
[1723705380956,0.05333591,141.58,141.55,0.04820189]
[1723705381544,3.5317,141.57,141.55,0.04820189]
[1723705381753,0.05333591,141.58,141.55,0.04820189]
[1723705382149,3.5317,141.56,141.55,0.04820189]
[1723705382948,30.6817,141.56,141.55,0.04820189]
[1723705383750,3.5317,141.56,141.55,0.04820189]
[1723705384453,8.5716,141.57,141.55,0.04820189]
[1723705385456,3.5316,141.57,141.55,0.04820189]
[1723705385852,3.58473591,141.58,141.55,0.04820189]
[1723705386051,0.05333591,141.58,141.55,0.04820189]
[1723705387258,0.05333591,141.58,141.55,3.58020189]
[1723705387451,0.05333591,141.58,141.55,0.04820189]
[1723705387858,0.05333591,141.58,141.56,3.5316]
[1723705390555,0.05333591,141.58,141.55,4.03530189]
[1723705391350,0.05333591,141.58,141.55,7.56730189]
[1723705391656,0.05333591,141.58,141.55,4.03530189]
[1723705393958,0.05333591,141.58,141.55,7.56730189]
[1723705394259,0.05333591,141.58,141.55,0.04820189]
[1723705398759,0.05333591,141.58,141.55,27.19820189]
[1723705399156,35.4524,141.67,141.57,27.15]
[1723705399355,3.59676393,141.66,141.57,27.15]
[1723705399855,3.5299,141.64,141.59,3.5308]
[1723705400459,3.5299,141.64,141.6,3.5307]
[1723705400760,0.05303274,141.63,141.6,3.57923725]
[1723705402362,0.05303274,141.63,141.61,3.5305]
[1723705402660,7.0532,141.77,141.61,3.5305]
[1723705402661,3.5283,141.7,141.61,27.15]
[1723705402861,30.63480565,141.74,141.63,27.15]
[1723705403058,30.63480565,141.74,141.64,5.04]
[1723705403267,3.5282,141.71,141.64,5.04]
[1723705403568,3.5282,141.71,141.66,3.5291]
[1723705403766,3.5282,141.71,141.64,8.64008475]
[1723705404270,0.04980361,141.7,141.67,0.05143531]
[1723705406963,27.19980361,141.7,141.67,0.05143531]
[1723705407165,32.23980361,141.7,141.67,0.05143531]
[1723705407365,3.5288,141.68,141.67,0.05143531]
[1723705408775,3.5298,141.64,141.58,27.15]
[1723705409064,3.46735531,141.65,141.56,28.3977]
[1723705409267,27.15,141.66,141.58,3.5311]
[1723705409470,3.5299,141.64,141.58,3.5311]
[1723705409666,3.5299,141.64,141.56,27.15]
[1723705409971,3.5296,141.65,141.6,3.5306]
[1723705410565,0.05238344,141.62,141.6,3.58188521]
[1723705410878,0.05238344,141.62,141.61,3.5305]
[1723705411563,3.5292,141.67,141.63,3.5299]
[1723705411764,1.3623,141.69,141.61,1.3052]
[1723705412367,3.5291,141.67,141.62,3.5302]
[1723705412868,0.04862865,141.66,141.63,0.05166561]
[1723705413467,30.79043045,141.66,141.63,0.05166561]
[1723705413675,5.04,141.65,141.63,0.05166561]
[1723705413869,3.5304,141.62,141.56,4.7839]
[1723705414175,3.5304,141.62,141.56,1.2524]
[1723705414572,3.5304,141.62,141.57,3.5314]
[1723705414777,27.15,141.64,141.56,1.2524]
[1723705415071,0.04526763,141.61,141.58,0.04760864]
[1723705416875,0.04526763,141.61,141.58,3.57870864]
[1723705417174,0.04526763,141.61,141.58,0.04760864]
[1723705418073,0.04526763,141.61,141.58,27.19760864]
[1723705418669,0.04526763,141.61,141.59,3.5308]
[1723705419365,0.04526763,141.61,141.6,3.5308]
[1723705419967,28.5123,141.69,141.62,3.5302]
[1723705420176,5.04,141.67,141.6,27.15]
[1723705420568,3.5297,141.65,141.61,3.5303]
[1723705421279,0.05331944,141.64,141.62,0.0451831]
[1723705421682,0.05331944,141.64,141.62,30.74299892]
[1723705422078,0.05331944,141.64,141.63,3.53]
[1723705425087,5.04,141.7,141.65,3.5293]
[1723705425285,3.5287,141.69,141.65,3.5293]
[1723705425586,1.3251,141.73,141.65,27.15]
[1723705425883,3.528,141.71,141.67,27.15]
[1723705426278,0.0470274,141.7,141.68,0.05086545]
[1723705431791,0.0470274,141.7,141.69,27.15]
[1723705431985,5.02,141.75,141.69,27.15]
[1723705432287,55.39,141.8,141.71,27.15]